lending/lending_fUSD_20240809
["ID","MTS","AMOUNT","RATE_DAILY","PERIOD"]
[334568705,1723240237706,-200.0,0.00010653,2]
[334568706,1723240237715,-3000.0,0.0001089,2]
[334568707,1723240237725,-1252.2442,0.0001089,2]
[334568708,1723240237734,-150.0,0.000109,2]
[334568709,1723240237743,-154.42860676,0.000109,2]
[334568710,1723240237752,-150.0,0.000109,2]
[334568711,1723240237762,-278.55729968,0.000109,2]
[334568712,1723240237771,-155.10259214,0.00010925,2]
[334568713,1723240237781,-150.72275191,0.00010973,2]
[334568714,1723240237790,-150.0,0.00010989,2]
[334568715,1723240237799,-500.0,0.00010989,2]
[334568716,1723240237808,-420.72782336,0.00010989,2]
[334568717,1723240237818,-500.0,0.00010989,2]
[334568718,1723240237827,-500.0,0.00010989,2]
[334568719,1723240237836,-329.77337105,0.00010989,2]
[334568720,1723240237846,-2297.62482402,0.0001099,2]
[334568721,1723240237857,-345.0,0.0001099,2]
[334568722,1723240237868,-4608.6,0.0001099,2]
[334568723,1723240237880,-1479.70572838,0.0001099,2]
[334568724,1723240237897,-568.17462,0.0001099,2]
[334568725,1723240237997,-658.98348,0.0001099,2]
[334568784,1723240239779,-316.06940488,0.0001099,2]
[334568785,1723240239794,-1617.3920438,0.0001099,2]
[334568786,1723240239805,-392.97693832,0.0001099,2]
[334568787,1723240239815,-2911.23838882,0.0001099,2]
[334568788,1723240239826,-602.86,0.0001099,2]
[334568789,1723240239847,-340873.03724863,0.0001099,2]
[334568790,1723240239857,-1894.0,0.00010998,2]
[334568791,1723240239865,-247.0,0.00010998,2]
[334568792,1723240239874,-150.0,0.00010998,2]
[334568793,1723240239883,-150.0,0.00010998,2]
[334568794,1723240239892,-155.36119301,0.00010999,2]
[334568795,1723240239901,-312.34335993,0.00010999,2]
[334568796,1723240239911,-33762.26944231,0.00011,2]
[334568797,1723240239920,-2352932.46041301,0.00011,2]
[334568798,1723240239929,-2460918.18933214,0.00011,2]
[334568799,1723240239939,-250.0,0.00011,2]
[334568800,1723240239948,-449.45808534,0.00011,2]
[334568801,1723240239957,-200.0,0.00011,2]
[334568802,1723240239966,-2000.0,0.00011,2]
[334568803,1723240239974,-200.0,0.00011,2]
[334568804,1723240239983,-530.8,0.00011,2]
[334568805,1723240239992,-200.0,0.00011,2]
[334568806,1723240240001,-226.0,0.00011,2]
[334568807,1723240240010,-1315.4149,0.00011,2]
[334568808,1723240240020,-835.07,0.00011,2]
[334568809,1723240240029,-150.0,0.00011,2]
[334568810,1723240240038,-529.33,0.00011,2]
[334568811,1723240240047,-954.5,0.00011,2]
[334568812,1723240240056,-513.2,0.00011,2]
[334568813,1723240240066,-357.0,0.00011,2]
[334568814,1723240240075,-1009.4223,0.00011,2]
[334568815,1723240240085,-3073.99,0.00011,2]
[334568816,1723240240095,-1000.0,0.00011,2]
[334568817,1723240240105,-160.10693,0.00011,2]
[334568818,1723240240115,-2225.1135,0.00011,2]
[334568819,1723240240125,-200.0,0.00011,2]
[334568820,1723240240135,-150.0,0.00011,2]
[334568821,1723240240144,-420.0,0.00011005,2]
[334568822,1723240240155,-155.0,0.00011105,2]
[334568823,1723240240164,-188.58901084,0.00011105,2]
[334568824,1723240240175,-5851.02790323,0.00011105,2]
[334568825,1723240240185,-19005.00212851,0.00011105,2]
[334568826,1723240240194,-7000.0,0.00011105,2]
[334568827,1723240240204,-155.0,0.00011105,2]
[334568828,1723240240216,-3081.5129697,0.00011105,2]
[334568829,1723240240226,-15479.68735624,0.00011105,2]
[334568830,1723240240235,-3031.69345987,0.00011105,2]
[334568831,1723240240246,-10531.85661047,0.00011105,2]
[334568832,1723240240255,-164.34404947,0.00011105,2]
[334568833,1723240240265,-5402.53102393,0.00011105,2]
[334568834,1723240240275,-3978.80981577,0.00011105,2]
[334568835,1723240240287,-2835.44069884,0.00011105,2]
[334568836,1723240240296,-2948.24383117,0.00011105,2]
[334568837,1723240240307,-3403.62557204,0.00011105,2]
[334568838,1723240240316,-1725.0,0.00011105,2]
[334568839,1723240240327,-686.84894999,0.00011105,2]
[334568840,1723240240336,-1275.34900939,0.00011105,2]
[334568841,1723240240346,-155.0,0.00011105,2]
[334568842,1723240240355,-522.14618603,0.00011105,2]
[334568843,1723240240365,-962.26073749,0.00011105,2]
[334568844,1723240240374,-2341.29720318,0.00011105,2]
[334568845,1723240240383,-400.0,0.00011105,2]
[334568846,1723240240392,-155.0,0.00011105,2]
[334568847,1723240240402,-206.72516919,0.00011105,2]
[334568848,1723240240412,-155.0,0.00011105,2]
[334568849,1723240240421,-528.80773361,0.00011105,2]
[334568850,1723240240431,-218.86415663,0.00011105,2]
[334568851,1723240240441,-330.12618987,0.00011105,2]
[334568852,1723240240451,-155.0,0.00011105,2]
[334568853,1723240240461,-297.42341449,0.00011105,2]
[334568854,1723240240470,-155.0,0.00011105,2]
[334568855,1723240240480,-439.98434578,0.00011105,2]
[334568856,1723240240490,-309.22609826,0.00011105,2]
[334568857,1723240240500,-155.0,0.00011105,2]
[334568858,1723240240510,-165.47216191,0.00011105,2]
[334568859,1723240240522,-1500.0,0.00011105,2]
[334568860,1723240240532,-205.40364118,0.00011105,2]
[334568861,1723240240541,-1297.9617252,0.00011105,2]
[334568862,1723240240551,-298.58351504,0.00011105,2]
[334568863,1723240240561,-1050.3006757,0.00011105,2]
[334568864,1723240240715,-155.0,0.00011105,2]
[334568865,1723240240726,-196.70831166,0.00011105,2]
[334568866,1723240240736,-155.0,0.00011105,2]
[334568867,1723240240745,-155.0,0.00011105,2]
[334568868,1723240240755,-155.0,0.00011105,2]
[334568869,1723240240764,-180.23062663,0.00011105,2]
[334568870,1723240240773,-155.0,0.00011105,2]
[334568871,1723240240783,-155.0,0.00011105,2]
[334568872,1723240240792,-257.82119532,0.00011105,2]
[334568873,1723240240801,-155.0,0.00011105,2]
[334568874,1723240240811,-155.30623111,0.00011105,2]
[334568875,1723240240820,-155.0,0.00011105,2]
[334568876,1723240240829,-155.0,0.00011105,2]
[334568877,1723240240838,-653.50900669,0.00011105,2]
[334568878,1723240240847,-2840.45885609,0.00011105,2]
[334568879,1723240240857,-1074.4498846,0.00011105,2]
[334568880,1723240240866,-921.3480316,0.00011105,2]
[334568881,1723240240875,-3120.33367931,0.00011105,2]
[334568882,1723240240885,-628.49894512,0.00011105,2]
[334568883,1723240240894,-476.83882625,0.00011105,2]
[334568884,1723240240903,-203.37032912,0.00011105,2]
[334568885,1723240240912,-2145.43588228,0.00011105,2]
[334568886,1723240240921,-155.0,0.00011105,2]
[334568887,1723240240931,-164.36702131,0.00011105,2]
[334568888,1723240240940,-200.0,0.00011105,2]
[334568889,1723240240950,-155.0,0.00011105,2]
[334568890,1723240240959,-532.16633031,0.00011105,2]
[334568891,1723240240968,-2273.97458829,0.00011105,2]
[334568892,1723240240979,-155.0,0.00011105,2]
[334568893,1723240240988,-158.96766456,0.00011105,2]
[334568894,1723240240997,-380.24774441,0.00011105,2]
[334568895,1723240241007,-359.33524996,0.00011105,2]
[334568896,1723240241017,-190.44864027,0.00011105,2]
[334568897,1723240241026,-155.40881043,0.00011105,2]
[334568898,1723240241035,-493.49814527,0.00011105,2]
[334568899,1723240241044,-405.01471298,0.00011105,2]
[334568900,1723240241053,-155.0,0.00011105,2]
[334568901,1723240241063,-155.0,0.00011105,2]
[334568902,1723240241072,-155.0,0.00011105,2]
[334568903,1723240241081,-485.08340827,0.00011105,2]
[334568904,1723240241090,-719.82594028,0.00011105,2]
[334568905,1723240241099,-270.51980682,0.00011105,2]
[334568906,1723240241109,-155.0,0.00011105,2]
[334568907,1723240241119,-155.0,0.00011105,2]
[334568908,1723240241128,-155.0,0.00011105,2]
[334568909,1723240241137,-357.37097138,0.00011105,2]
[334568910,1723240241147,-265.37710214,0.00011105,2]
[334568911,1723240241156,-155.0,0.00011105,2]
[334568912,1723240241165,-347.61338532,0.00011105,2]
[334568913,1723240241174,-155.0,0.00011105,2]
[334568914,1723240241190,-159.57347377,0.00011105,2]
[334568915,1723240241201,-155.0,0.00011105,2]
[334568916,1723240241210,-211.66783683,0.00011105,2]
[334568917,1723240241220,-155.0,0.00011105,2]
[334568918,1723240241229,-155.0,0.00011105,2]
[334568919,1723240241239,-155.0,0.00011105,2]
[334568920,1723240241248,-205.89433174,0.00011105,2]
[334568921,1723240241258,-1739.1737808,0.00011105,2]
[334568922,1723240241267,-213.58063223,0.00011105,2]
[334568923,1723240241277,-367.78963166,0.00011105,2]
[334568924,1723240241286,-389.36509644,0.00011105,2]
[334568925,1723240241296,-520.01591584,0.00011105,2]
[334568926,1723240241305,-236.29328499,0.00011105,2]
[334568927,1723240241315,-1138.87080337,0.00011105,2]
[334568928,1723240241324,-243.19980879,0.00011105,2]
[334568929,1723240241334,-155.0,0.00011105,2]
[334568930,1723240241343,-155.0,0.00011105,2]
[334568931,1723240241353,-454.47653863,0.00011105,2]
[334568932,1723240241362,-203.14083137,0.00011105,2]
[334568933,1723240241372,-594.9326829,0.00011105,2]
[334568934,1723240241382,-401.26423212,0.00011105,2]
[334568935,1723240241392,-1633.9796717,0.00011105,2]
[334568936,1723240241402,-649.7091849,0.00011105,2]
[334568937,1723240241411,-364.10585476,0.00011105,2]
[334568938,1723240241420,-155.0,0.00011105,2]
[334568939,1723240241431,-723.23511172,0.00011105,2]
[334568940,1723240241442,-600.60859268,0.00011105,2]
[334568941,1723240241452,-197.09206619,0.00011105,2]
[334568942,1723240241462,-155.0,0.00011105,2]
[334568943,1723240241471,-313.65529217,0.00011105,2]
[334568944,1723240241482,-255.13733329,0.00011105,2]
[334568945,1723240241491,-155.0,0.00011105,2]
[334568946,1723240241501,-365.68547453,0.00011105,2]
[334568947,1723240241512,-155.0,0.00011105,2]
[334568948,1723240241523,-155.0,0.00011105,2]
[334568949,1723240241532,-155.0,0.00011105,2]
[334568950,1723240241543,-155.0,0.00011105,2]
[334568951,1723240241553,-155.29448148,0.00011105,2]
[334568952,1723240241563,-295.03178914,0.00011105,2]
[334568953,1723240241572,-1497.91925545,0.00011105,2]
[334568954,1723240241581,-2264.29617524,0.00011105,2]
[334568955,1723240241591,-225.58411866,0.00011105,2]
[334568956,1723240241602,-212.107656,0.00011105,2]
[334568957,1723240241612,-155.25084567,0.00011105,2]
[334568958,1723240241622,-163.74413757,0.00011105,2]
[334568959,1723240241631,-156.81644864,0.00011105,2]
[334568960,1723240241641,-193.07844846,0.00011105,2]
[334568961,1723240241651,-155.0,0.00011105,2]
[334568962,1723240241661,-159.31313092,0.00011105,2]
[334568963,1723240241670,-155.0,0.00011105,2]
[334568964,1723240241685,-891.93599806,0.00011105,2]
[334568965,1723240241695,-293.90366344,0.00011105,2]
[334568966,1723240241704,-162.89676018,0.00011105,2]
[334568967,1723240241713,-179.39133276,0.00011105,2]
[334568968,1723240241722,-200.28015479,0.00011105,2]
[334568969,1723240241732,-155.0,0.00011105,2]
[334568970,1723240241742,-174.2503181,0.00011105,2]
[334568971,1723240241751,-155.06826554,0.00011105,2]
[334568972,1723240241761,-248.98174394,0.00011105,2]
[334568973,1723240241770,-155.08969027,0.00011105,2]
[334568974,1723240241781,-155.19016911,0.00011105,2]
[334568975,1723240241790,-267.38893394,0.00011105,2]
[334568976,1723240241800,-200.01949892,0.00011105,2]
[334568977,1723240241810,-155.25638732,0.00011105,2]
[334568978,1723240241819,-160.76915209,0.00011105,2]
[334568979,1723240241829,-155.0,0.00011105,2]
[334568980,1723240241839,-241.3440011,0.00011105,2]
[334568981,1723240241848,-155.13529192,0.00011105,2]
[334568982,1723240241857,-156.67933936,0.00011105,2]
[334568983,1723240241867,-200.75365201,0.00011105,2]
[334568984,1723240241876,-155.86645622,0.00011105,2]
[334568985,1723240241886,-189.81173593,0.00011105,2]
[334568986,1723240241895,-198.98788786,0.00011105,2]
[334568987,1723240241906,-245.90653923,0.00011105,2]
[334568988,1723240241915,-298.33419464,0.00011105,2]
[334568989,1723240241925,-156.21302556,0.00011105,2]
[334568990,1723240241935,-288.62616374,0.00011105,2]
[334568991,1723240241944,-155.07645933,0.00011105,2]
[334568992,1723240241953,-303.87313893,0.00011105,2]
[334568993,1723240241963,-200.0,0.0001111,2]
[334568994,1723240241972,-2000.0,0.0001111,2]
[334568995,1723240241981,-200.0,0.0001111,2]
[334568996,1723240241990,-200.0,0.0001111,2]
[334568997,1723240241999,-200.0,0.0001111,2]
[334568998,1723240242009,-35719.51924363,0.00011186,2]
[334568999,1723240242019,-48592.91415805,0.00011186,2]
[334569000,1723240242029,-530.8,0.000112,2]
[334569001,1723240242038,-150.0,0.000112,2]
[334569002,1723240242047,-343.47,0.000112,2]
[334569003,1723240242056,-530.8,0.000112,2]
[334569004,1723240242065,-530.8,0.000112,2]
[334569005,1723240242075,-150.0,0.000112,2]
[334569006,1723240242084,-200.0,0.00011221,2]
[334569007,1723240242093,-1960.42768157,0.00011221,2]
[334569008,1723240242102,-200.0,0.00011221,2]
[334569009,1723240242112,-200.0,0.00011221,2]
[334569010,1723240242122,-200.0,0.00011221,2]
[334569011,1723240242131,-401.84527531,0.00011291,2]
[334569012,1723240242141,-356.41,0.00011323,2]
[334569013,1723240242150,-200.0,0.00011333,2]
[334569014,1723240242160,-200.0,0.00011333,2]
[334569015,1723240242169,-200.0,0.00011333,2]
[334569016,1723240242178,-200.0,0.00011333,2]
[334569017,1723240242187,-186.16,0.00011363,2]
[334569018,1723240242196,-167.3,0.00011382,2]
[334569019,1723240242205,-200.0,0.00011447,2]
[334569020,1723240242214,-200.0,0.00011447,2]
[334569021,1723240242223,-1000.0,0.00011468,2]
[334569022,1723240242232,-600.0,0.00012,2]
[334569023,1723240242242,-1747.32,0.00012,2]
[334569025,1723240242251,-1747.32,0.00012,2]
[334569026,1723240242260,-1747.32,0.00012,2]
[334569027,1723240242269,-1747.32,0.00012,2]
[334569028,1723240242279,-1747.32,0.00012,2]
[334569030,1723240242288,-1747.32,0.00012,2]
[334569031,1723240242298,-1747.32,0.00012,2]
[334569032,1723240242307,-1747.32,0.00012,2]
[334569033,1723240242316,-1747.32,0.00012,2]
[334569034,1723240242326,-1747.32,0.00012,2]
[334569035,1723240242336,-1747.32,0.00012,2]
[334569036,1723240242345,-1747.32,0.00012,2]
[334569037,1723240242355,-1747.32,0.00012,2]
[334569038,1723240242364,-1747.32,0.00012,2]
[334569039,1723240242373,-1747.32,0.00012,2]
[334569040,1723240242382,-1747.32,0.00012,2]
[334569041,1723240242392,-1747.32,0.00012,2]
[334569042,1723240242402,-1747.32,0.00012,2]
[334569043,1723240242412,-1747.32,0.00012,2]
[334569045,1723240242422,-1747.32,0.00012,2]
[334569048,1723240242433,-1747.32,0.00012,2]
[334569049,1723240242443,-1747.32,0.00012,2]
[334569050,1723240242453,-1747.32,0.00012,2]
[334569051,1723240242463,-1747.32,0.00012,2]
[334569052,1723240242473,-1747.32,0.00012,2]
[334569053,1723240242482,-1747.32,0.00012,2]
[334569054,1723240242492,-1747.32,0.00012,2]
[334569055,1723240242502,-1747.32,0.00012,2]
[334569056,1723240242515,-1747.32,0.00012,2]
[334569057,1723240242524,-1747.32,0.00012,2]
[334569058,1723240242534,-1747.32,0.00012,2]
[334569059,1723240242543,-1747.32,0.00012,2]
[334569060,1723240242553,-1747.32,0.00012,2]
[334569061,1723240242564,-1747.32,0.00012,2]
[334569062,1723240242574,-421.18,0.00012,2]
[334569063,1723240242584,-421.18,0.00012,2]
[334569064,1723240242596,-421.18,0.00012,2]
[334569065,1723240242606,-1009.37,0.00012,2]
[334569066,1723240242615,-1009.37,0.00012,2]
[334569067,1723240242625,-1009.37,0.00012,2]
[334569068,1723240242635,-1009.37,0.00012,2]
[334569069,1723240242644,-1009.37,0.00012,2]
[334569070,1723240242654,-1009.37,0.00012,2]
[334569071,1723240242663,-1009.37,0.00012,2]
[334569072,1723240242673,-1009.37,0.00012,2]
[334569073,1723240242683,-1009.37,0.00012,2]
[334569074,1723240242693,-1009.37,0.00012,2]
[334569075,1723240242702,-1009.37,0.00012,2]
[334569076,1723240242712,-1009.37,0.00012,2]
[334569077,1723240242722,-1009.37,0.00012,2]
[334569078,1723240242732,-1009.37,0.00012,2]
[334569080,1723240242742,-1009.37,0.00012,2]
[334569081,1723240242751,-1009.37,0.00012,2]
[334569082,1723240242761,-1009.37,0.00012,2]
[334569083,1723240242771,-1009.37,0.00012,2]
[334569084,1723240242780,-1009.37,0.00012,2]
[334569085,1723240242790,-1009.37,0.00012,2]
[334569086,1723240242800,-1009.37,0.00012,2]
[334569087,1723240242810,-1009.37,0.00012,2]
[334569088,1723240242819,-1009.37,0.00012,2]
[334569089,1723240242830,-1009.37,0.00012,2]
[334569090,1723240242839,-1009.37,0.00012,2]
[334569091,1723240242849,-1009.37,0.00012,2]
[334569092,1723240242859,-1009.37,0.00012,2]
[334569093,1723240242868,-1009.37,0.00012,2]
[334569094,1723240242877,-1009.37,0.00012,2]
[334569095,1723240242887,-1009.37,0.00012,2]
[334569096,1723240242896,-329.28,0.00012033,2]
[334569097,1723240242905,-255.0,0.00012033,2]
[334569098,1723240242915,-587.0,0.00012105,2]
[334569099,1723240242925,-5000.0,0.0001236,2]
[334569100,1723240242935,-4802.36309509,0.0001236,2]
[334569101,1723240242945,-155.21731765,0.0001236,2]
[334569102,1723240242955,-2000.0,0.000124,2]
[334569103,1723240242964,-329.28,0.00012458,2]
[334569104,1723240242974,-500.0,0.0001246,2]
[334569105,1723240242983,-500.0,0.0001246,2]
[334569106,1723240242992,-500.0,0.0001246,2]
[334569107,1723240243002,-500.0,0.0001246,2]
[334569108,1723240243012,-500.0,0.0001246,2]
[334569109,1723240243021,-500.0,0.0001246,2]
[334569110,1723240243030,-500.0,0.0001246,2]
[334569111,1723240243039,-500.0,0.0001246,2]
[334569112,1723240243049,-500.0,0.0001246,2]
[334569113,1723240243058,-500.0,0.0001246,2]
[334569114,1723240243067,-500.0,0.0001246,2]
[334569115,1723240243077,-500.0,0.0001246,2]
[334569116,1723240243086,-500.0,0.0001246,2]
[334569117,1723240243095,-500.0,0.0001246,2]
[334569118,1723240243104,-500.0,0.0001246,2]
[334569119,1723240243114,-500.0,0.0001246,2]
[334569120,1723240243123,-500.0,0.0001246,2]
[334569121,1723240243133,-500.0,0.0001246,2]
[334569122,1723240243142,-500.0,0.0001246,2]
[334569123,1723240243153,-769.0,0.0001246,2]
[334569124,1723240243163,-697421.99152108,0.0001246,2]
[334569125,1723240243172,-200.0,0.00012473,2]
[334569126,1723240243183,-179.23465511,0.00012473,2]
[334569127,1723240243193,-200.0,0.00012473,2]
[334569128,1723240243202,-200.0,0.00012473,2]
[334569129,1723240243211,-289.80724046,0.000125,2]
[334569130,1723240243221,-186.16,0.00012626,2]
[334569131,1723240243231,-167.3,0.00012647,2]
[334569132,1723240243241,-393.61,0.00012738,2]
[334569133,1723240243250,-1000.0,0.00012742,2]
[334569134,1723240243259,-150.0,0.000128,2]
[334569135,1723240243268,-869.34808169,0.000128,2]
[334569136,1723240243278,-150.0,0.000128,2]
[334569137,1723240243287,-150.0,0.000128,2]
[334569138,1723240243297,-216.30156591,0.000128,2]
[334569139,1723240243306,-1315.4149,0.000128,2]
[334569140,1723240243316,-150.0,0.000128,2]
[334569141,1723240243327,-150.0,0.000128,2]
[334569142,1723240243337,-150.0,0.000128,2]
[334569143,1723240243347,-150.0,0.000128,2]
[334569144,1723240243357,-150.0,0.000128,2]
[334569145,1723240243366,-240.33282879,0.000128,2]
[334569146,1723240243376,-1009.4223,0.000128,2]
[334569147,1723240243386,-2225.1135,0.000128,2]
[334569148,1723240243395,-600.0,0.000128,2]
[334569149,1723240243405,-329.28,0.00012884,2]
[334569150,1723240243414,-179.99,0.00012893,2]
[334569151,1723240243424,-869.34808169,0.00012923,2]
[334569152,1723240243435,-216.30156591,0.00012923,2]
[334569153,1723240243444,-300.0,0.00013,2]
[334569154,1723240243574,-155.0,0.00013,2]
[334569155,1723240243586,-150.0,0.00013014,2]
[334569156,1723240243597,-150.0,0.00013026,2]
[334569157,1723240243606,-869.34808169,0.00013046,2]
[334569158,1723240243616,-216.30156591,0.00013046,2]
[334569159,1723240243625,-5040.71136608,0.0001305,2]
[334569160,1723240243635,-154.42860676,0.00013148,2]
[334569161,1723240243644,-869.34808169,0.0001317,2]
[334569162,1723240243654,-216.30156591,0.0001317,2]
[334569163,1723240243663,-433.0,0.00013176,2]
[334569164,1723240243673,-150.0,0.00013228,2]
[334569165,1723240243683,-150.0,0.00013252,2]
[334569166,1723240243693,-869.34808169,0.00013293,2]
[334569167,1723240243703,-216.30156591,0.00013293,2]
[334569168,1723240243713,-329.28,0.0001331,2]
[334569169,1723240243722,-823.0,0.00013316,2]
[334569170,1723240243732,-328.17108261,0.00013321,2]
[334569171,1723240243742,-3000.0,0.0001339,2]
[334569172,1723240243751,-2000.0,0.000134,2]
[334569173,1723240243761,-150.0,0.0001341,2]
[334569174,1723240243771,-869.34808169,0.00013416,2]
[334569175,1723240243780,-216.30156591,0.00013416,2]
[334569176,1723240243789,-150.0,0.00013442,2]
[334569177,1723240243799,-150.0,0.00013478,2]
[334569178,1723240243808,-1000.0,0.000135,2]
[334569179,1723240243817,-869.34808169,0.00013539,2]
[334569180,1723240243827,-216.30156591,0.00013539,2]
[334569181,1723240243837,-150.0,0.00013656,2]
[334569182,1723240243847,-869.34808169,0.00013663,2]
[334569183,1723240243856,-216.30156591,0.00013663,2]
[334569184,1723240243865,-150.0,0.00013671,2]
[334569185,1723240243874,-1000.0,0.00013698,2]
[334569186,1723240243884,-1000.0,0.00013698,2]
[334569187,1723240243893,-1000.0,0.00013698,2]
[334569188,1723240243902,-1000.0,0.00013698,2]
[334569189,1723240243912,-1000.0,0.00013698,2]
[334569190,1723240243921,-1000.0,0.00013698,2]
[334569191,1723240243940,-1000.0,0.00013698,2]
[334569192,1723240243952,-1000.0,0.00013698,2]
[334569193,1723240243962,-1000.0,0.00013698,2]
[334569194,1723240243972,-1000.0,0.00013698,2]
[334569195,1723240243982,-1000.0,0.00013698,2]
[334569196,1723240243992,-1000.0,0.00013698,2]
[334569197,1723240244003,-1000.0,0.00013698,2]
[334569198,1723240244013,-1000.0,0.00013698,2]
[334569199,1723240244023,-527.43894205,0.00013698,2]
[334569200,1723240244033,-325.82374108,0.00013698,2]
[334569201,1723240244044,-2333.46,0.00013699,2]
[334569202,1723240244054,-2751.0,0.00013699,2]
[334569203,1723240244065,-200.0,0.00013699,2]
[334569204,1723240244075,-710.57,0.00013699,2]
[334569205,1723240244085,-500.0,0.00013699,2]
[334569206,1723240244096,-300.0,0.00013699,2]
[334569207,1723240244106,-300.0,0.00013699,2]
[334569208,1723240244116,-300.0,0.00013699,2]
[334569209,1723240244126,-300.0,0.00013699,2]
[334569210,1723240244135,-6899.06,0.000137,2]
[334569211,1723240244145,-6899.06,0.000137,2]
[334569212,1723240244155,-6899.06,0.000137,2]
[334569213,1723240244165,-6899.06,0.000137,2]
[334569214,1723240244175,-6899.06,0.000137,2]
[334569215,1723240244187,-150.0,0.00013704,2]
[334569216,1723240244197,-329.28,0.00013735,2]
[334569217,1723240244207,-869.34808169,0.00013786,2]
[334569218,1723240244216,-216.30156591,0.00013786,2]
[334569219,1723240244227,-356.25,0.00013786,2]
[334569220,1723240244237,-372.86,0.00013786,2]
[334569221,1723240244247,-150.0,0.00013786,2]
[334569222,1723240244259,-756.07,0.00013786,2]
[334569223,1723240244269,-150.0,0.00013786,2]
[334569224,1723240244279,-150.0,0.00013786,2]
[334569225,1723240244289,-300.0,0.00013799,2]
[334569226,1723240244299,-300.0,0.00013799,2]
[334569227,1723240244310,-300.0,0.00013799,2]
[334569228,1723240244319,-400.0,0.00013842,2]
[334569229,1723240244330,-400.0,0.00013842,2]
[334569230,1723240244339,-400.0,0.00013842,2]
[334569231,1723240244349,-150.0,0.0001387,2]
[334569232,1723240244360,-186.16,0.00013889,2]
[334569233,1723240244370,-300.0,0.00013899,2]
[334569234,1723240244380,-300.0,0.00013899,2]
[334569235,1723240244390,-106675.00661475,0.000139,3]
[334569237,1723240245432,-655.09136147,0.000139,3]
[334569238,1723240245444,-20567.67826085,0.000139,3]
[334569239,1723240245457,-2890.86680234,0.000139,3]
[334569240,1723240245654,-2907.29565391,0.000139,3]
[334569241,1723240245698,-6316.88516173,0.000139,3]
[334569242,1723240245813,-553.6124409,0.000139,3]
[334569247,1723240282779,-150.0,0.00026078,120]
[334569248,1723240282805,-150.0,0.00026554,120]
[334569249,1723240282830,-150.0,0.00026982,120]
[334569250,1723240282854,-4999550.0,0.00027,120]
[334569251,1723240292136,-150.0,0.00026973,120]
[334569252,1723240292164,-4999850.0,0.00027,120]
[334569253,1723240302167,-2700000.0,0.00027,120]
[334569254,1723240310919,-1078795.15537778,0.00027,120]
[334569255,1723240310946,-3921204.84462222,0.00027,120]
[334569256,1723240315793,-424357.19406959,0.00027,120]
[334569257,1723240315816,-150.0,0.0002704,120]
[334569258,1723240315839,-150.0,0.00027041,120]
[334569259,1723240315861,-150.0,0.00027181,120]
[334569260,1723240315885,-150.0,0.00027188,120]
[334569261,1723240315908,-150.0,0.00027365,120]
[334569262,1723240315938,-150.0,0.00027409,120]
[334569263,1723240315961,-150.0,0.0002741,120]
[334569264,1723240315983,-584.71,0.00027465,120]
[334569265,1723240316006,-150.0,0.00027508,120]
[334569266,1723240316031,-150.0,0.00027551,120]
[334569267,1723240316054,-150.0,0.00027792,120]
[334569268,1723240316076,-150.0,0.00027837,120]
[334569269,1723240316099,-150.0,0.00027838,120]
[334569270,1723240316123,-150.0,0.00027946,120]
[334569271,1723240316146,-150.0,0.00027997,120]
[334569272,1723240316169,-500.0,0.00028,120]
[334569273,1723240316193,-150.0,0.0002804,120]